bitfinex-derivatives/quotes_SOLF0:USTF0_20250905
["timestamp","ask_amount","ask_price","bid_price","bid_amount"]
[1757095042056,2.18158351,202.62,202.57,7.62]
[1757095042256,7.11058351,202.62,202.56,2.18158351]
[1757095042456,7.11058351,202.62,202.57,7.62]
[1757095042661,7.11058351,202.62,202.56,2.18158351]
[1757095043260,7.11058351,202.62,202.56,9.80158351]
[1757095043465,7.11058351,202.63,202.56,9.80158351]
[1757095043666,7.11058351,202.63,202.57,7.62]
[1757095045067,2.7,202.62,202.57,7.62]
[1757095045264,2.7,202.61,202.57,7.62]
[1757095046465,7.641,202.61,202.56,2.18158351]
[1757095046668,2.7,202.61,202.57,7.62]
[1757095046869,2.7,202.61,202.54,2.18158351]
[1757095047069,2.7,202.61,202.54,9.80158351]
[1757095048060,2.7,202.61,202.54,2.18158351]
[1757095048262,2.7,202.61,202.56,2.18158351]
[1757095048466,7.641,202.61,202.57,7.62]
[1757095049273,7.641,202.61,202.56,2.18158351]
[1757095049570,7.641,202.61,202.57,7.62]
[1757095050168,4.941,202.61,202.56,2.18158351]
[1757095050468,7.651,202.61,202.57,7.62]
[1757095050966,4.941,202.61,202.56,2.18158351]
[1757095051772,4.941,202.61,202.57,7.62]
[1757095052174,7.651,202.61,202.57,7.62]
[1757095052670,2.71,202.6,202.56,2.18158351]
[1757095052875,2.71,202.6,202.57,7.62]
[1757095053470,4.941,202.61,202.56,7.62]
[1757095053773,4.941,202.61,202.55,2.18158351]
[1757095053774,4.941,202.61,202.55,9.80158351]
[1757095053977,4.941,202.61,202.55,7.62]
[1757095055274,2.71,202.59,202.55,7.62]
[1757095055670,2.71,202.59,202.54,7.62]
[1757095055975,2.71,202.59,202.53,9.80158351]
[1757095056275,4.941,202.6,202.54,7.62]
[1757095057077,4.941,202.6,202.55,2.18158351]
[1757095057377,7.651,202.6,202.56,7.62]
[1757095059278,2.71,202.6,202.56,7.62]
[1757095059479,4.941,202.59,202.56,7.62]
[1757095059674,7.651,202.59,202.56,7.62]
[1757095060781,7.651,202.59,202.52,7.62]
[1757095061182,2.71,202.59,202.52,7.62]
[1757095061379,7.651,202.62,202.52,7.62]
[1757095061572,7.651,202.62,202.54,3.41389587]
[1757095061882,7.651,202.62,202.55,7.62]
[1757095065280,4.941,202.62,202.55,7.62]
[1757095065482,7.651,202.61,202.55,7.62]
[1757095068083,4.941,202.59,202.55,7.62]
[1757095068288,2.73,202.58,202.55,7.62]
[1757095069788,4.941,202.61,202.53,8.04]
[1757095072889,4.941,202.59,202.53,8.04]
[1757095075581,4.941,202.63,202.53,8.04]
[1757095075787,2.73,202.57,202.53,8.04]
[1757095075986,4.941,202.59,202.53,8.04]
[1757095076193,4.941,202.59,202.5,8.04]
[1757095076794,4.941,202.6,202.5,8.04]
[1757095076990,7.671,202.59,202.5,8.04]
[1757095077196,4.941,202.59,202.5,8.04]
[1757095077495,2.73,202.58,202.5,8.04]
[1757095078795,7.671,202.61,202.52,8.04]
[1757095080095,2.73,202.61,202.52,8.04]
[1757095080295,7.671,202.61,202.52,8.04]
[1757095080496,48.33268563,202.64,202.52,8.04]
[1757095080497,5.51268563,202.63,202.52,8.04]
[1757095080688,19.53268563,202.65,202.52,8.04]
[1757095080892,2.73,202.64,202.52,8.04]
[1757095081094,4.941,202.63,202.52,8.04]
[1757095081794,4.941,202.61,202.52,8.04]
[1757095083900,4.941,202.62,202.52,8.04]
[1757095084199,2.73,202.58,202.52,8.04]
[1757095087097,2.73,202.61,202.52,8.04]
[1757095087401,2.73,202.61,202.55,8.04]
[1757095087601,4.941,202.6,202.55,8.04]
[1757095087801,2.73,202.61,202.55,8.04]
[1757095088896,4.941,202.6,202.55,8.04]
[1757095089096,4.941,202.6,202.54,3.41389587]
[1757095089601,8.24268563,202.66,202.55,8.04]
[1757095089800,4.941,202.65,202.55,8.04]
[1757095089997,4.941,202.63,202.55,8.04]
[1757095090398,2.73,202.64,202.55,8.04]
[1757095091300,2.73,202.64,202.56,8.04]
[1757095105015,4.941,202.66,202.56,8.04]
[1757095105714,7.651,202.65,202.56,8.04]
[1757095107210,4.941,202.66,202.56,8.04]
[1757095107414,2.71,202.61,202.51,3.41389587]
[1757095107617,7.651,202.61,202.52,7.67]
[1757095107808,2.71,202.6,202.52,7.67]
[1757095108313,2.71,202.59,202.52,7.67]
[1757095111313,8.21656537,202.63,202.52,7.67]
[1757095111610,6.13389587,202.62,202.52,7.67]
[1757095111917,2.72,202.58,202.52,7.67]
[1757095116021,84.301,202.61,202.52,7.67]
[1757095117615,2.72,202.6,202.52,7.67]
[1757095119419,2.18531389,202.58,202.52,9.85531389]
[1757095120420,2.18531389,202.59,202.52,9.85531389]
[1757095120621,2.18531389,202.59,202.53,7.67]
[1757095121819,2.72,202.6,202.54,2.18531389]
[1757095122020,4.90531389,202.6,202.55,7.67]
[1757095122221,4.90531389,202.6,202.54,2.18531389]
[1757095122422,2.18531389,202.6,202.54,2.18531389]
[1757095122629,31.23656537,202.63,202.49,4.4442]
[1757095122630,2.18531389,202.63,202.57,7.67]
[1757095123119,2.18531389,202.65,202.59,7.67]
[1757095124525,7.12631389,202.65,202.59,7.67]
[1757095127429,4.941,202.65,202.59,7.67]
[1757095127629,7.12631389,202.65,202.59,7.67]
[1757095129426,4.941,202.59,202.53,7.46]
[1757095129628,7.12631389,202.59,202.53,7.46]
[1757095131831,7.12631389,202.59,202.53,9.64531389]
[1757095134633,4.941,202.59,202.58,7.46]
[1757095135038,7.671,202.62,202.58,7.46]
[1757095135437,7.671,202.62,202.47,69.1413]
[1757095135438,2.73,202.61,202.5,4.444]
[1757095135634,9.85631389,202.61,202.55,7.46]
[1757095136840,7.671,202.61,202.57,7.46]
[1757095137432,2.73,202.61,202.54,7.46]
[1757095137643,9.85631389,202.61,202.54,9.64531389]
[1757095140242,2.18531389,202.59,202.54,7.46]
[1757095140449,2.73,202.58,202.5,9.64531389]
[1757095140647,2.18531389,202.57,202.5,7.46]
[1757095140845,2.18531389,202.57,202.51,2.18531389]
[1757095144550,2.18531389,202.57,202.51,9.64531389]
[1757095147153,4.91531389,202.55,202.45,7.46]
[1757095147348,4.91531389,202.55,202.42,4.4457]
[1757095147349,4.91531389,202.55,202.48,2.18531389]
[1757095147654,4.91531389,202.55,202.48,7.46]
[1757095147847,4.91531389,202.55,202.49,2.18531389]
[1757095148154,4.91531389,202.55,202.48,7.46]
[1757095148355,4.91531389,202.55,202.48,9.64531389]
[1757095148543,2.18531389,202.54,202.48,9.64531389]
[1757095149651,2.18531389,202.54,202.43,4.4455]
[1757095149652,2.18531389,202.52,202.45,2.18531389]
[1757095149850,2.18531389,202.52,202.45,9.64531389]
[1757095150050,2.18531389,202.52,202.45,7.46]
[1757095150250,2.18531389,202.52,202.45,9.64531389]
[1757095151154,2.18531389,202.52,202.45,7.46]
[1757095151657,2.18531389,202.52,202.46,2.18531389]
[1757095151955,2.73,202.52,202.45,7.46]
[1757095152157,9.85631389,202.51,202.45,7.46]
[1757095152351,2.18531389,202.49,202.42,9.64531389]
[1757095152655,2.18531389,202.49,202.44,2.18531389]
[1757095152849,4.91531389,202.49,202.45,7.46]
[1757095153054,4.941,202.48,202.45,7.46]
[1757095154047,4.941,202.48,202.44,2.18531389]
[1757095154251,4.941,202.48,202.45,7.46]
[1757095156856,12.92,202.55,202.35,36.68]
[1757095156857,2.73,202.45,202.35,7.46]
[1757095157056,2.73,202.45,202.4,7.46]
[1757095157259,2.73,202.45,202.42,7.46]
[1757095157761,2.73,202.45,202.42,9.64531389]
[1757095158060,7.671,202.45,202.42,7.46]
[1757095158557,2.74,202.44,202.38,2.18531389]
[1757095159060,4.941,202.43,202.38,2.18531389]
[1757095159260,7.681,202.43,202.39,8.0]
[1757095160260,7.12631389,202.46,202.39,8.0]
[1757095161160,4.941,202.52,202.45,10.18531389]
[1757095161369,2.74,202.51,202.45,10.18531389]
[1757095161560,4.941,202.48,202.45,10.18531389]
[1757095161865,4.941,202.48,202.45,2.18531389]
[1757095162065,4.941,202.48,202.46,8.0]
[1757095163458,4.941,202.51,202.47,10.18531389]
[1757095163664,4.941,202.51,202.5,10.18531389]
[1757095164059,4.92531389,202.59,202.5,10.18531389]
[1757095164265,4.92531389,202.59,202.52,2.18531389]
[1757095164769,4.941,202.58,202.52,2.18531389]
[1757095165360,2.74,202.59,202.52,2.18531389]
[1757095165965,4.941,202.58,202.52,2.18531389]
[1757095167372,7.12631389,202.58,202.52,2.18531389]
[1757095167767,2.74,202.53,202.46,10.18531389]
[1757095168073,7.12631389,202.52,202.46,10.18531389]
[1757095171676,2.73,202.58,202.5,2.18531389]
[1757095171875,4.91531389,202.58,202.52,2.18531389]
[1757095172268,7.671,202.56,202.52,10.18531389]
[1757095172475,7.671,202.56,202.52,8.0]
[1757095172679,7.671,202.56,202.52,10.18531389]
[1757095174482,7.671,202.56,202.52,8.0]
[1757095175770,9.85631389,202.56,202.52,8.0]
[1757095176076,2.18531389,202.54,202.47,8.0]
[1757095176280,2.18531389,202.54,202.48,2.18531389]
[1757095176677,7.12631389,202.54,202.49,8.0]
[1757095177075,4.941,202.54,202.5,2.18531389]
[1757095177275,4.941,202.54,202.51,8.0]
[1757095177878,4.941,202.54,202.49,2.18531389]
[1757095178980,4.941,202.54,202.5,8.0]
[1757095179184,4.941,202.54,202.49,2.18531389]
[1757095180779,4.941,202.54,202.5,8.0]
[1757095180983,4.941,202.54,202.49,2.18531389]
[1757095181186,4.941,202.54,202.5,8.0]
[1757095181483,4.941,202.54,202.47,8.0]
[1757095189690,2.73,202.55,202.47,8.0]
[1757095191491,7.671,202.58,202.47,8.0]
[1757095191693,7.671,202.58,202.48,7.71]
[1757095197896,4.941,202.56,202.48,7.71]
[1757095198297,4.941,202.56,202.48,4.4444]
[1757095198598,4.941,202.56,202.49,7.71]
[1757095200792,2.73,202.55,202.49,7.71]
[1757095200997,7.671,202.55,202.5,0.03642084]
[1757095201198,2.73,202.54,202.5,7.74642084]
[1757095201400,2.73,202.54,202.5,0.03642084]
[1757095201603,7.671,202.55,202.51,7.71]
[1757095201800,5.49656537,202.59,202.51,7.71]
[1757095202402,2.73,202.6,202.51,7.71]
[1757095202595,7.98821993,202.63,202.54,7.71]
[1757095202596,5.49656537,202.62,202.54,7.71]
[1757095202799,2.73,202.63,202.54,7.71]
[1757095203000,0.03402763,202.58,202.54,7.71]
[1757095203194,0.03402763,202.58,202.57,7.71]
[1757095203400,2.76402763,202.58,202.56,0.03527613]
[1757095203806,2.73,202.57,202.56,0.03527613]
[1757095204007,7.671,202.57,202.56,0.03527613]
[1757095204208,13.16756537,202.57,202.56,0.03527613]
[1757095205907,7.671,202.57,202.56,0.03527613]
[1757095206108,13.16530729,202.57,202.56,0.03527613]
[1757095206407,0.03402763,202.58,202.57,7.71]
[1757095219121,4.941,202.66,202.57,8.21]
[1757095219323,4.941,202.66,202.62,3.41567067]
[1757095219618,4.941,202.66,202.63,8.14]
[1757095219917,4.941,202.68,202.62,11.55567067]
[1757095220321,4.941,202.68,202.64,8.14]
[1757095220523,7.661,202.68,202.64,8.14]
[1757095221419,4.941,202.69,202.64,8.14]
[1757095221624,7.661,202.68,202.64,8.14]
[1757095222925,7.661,202.68,202.63,3.44963253]
[1757095222926,2.72,202.66,202.63,3.44963253]
[1757095223129,2.72,202.66,202.63,11.58963253]
[1757095223719,4.941,202.66,202.63,8.17396186]
[1757095223918,2.72,202.65,202.63,0.03396186]
[1757095224115,4.941,202.66,202.63,0.03396186]
[1757095224323,4.941,202.66,202.64,8.14]
[1757095224820,2.72,202.67,202.63,8.17396186]
[1757095225022,2.72,202.66,202.63,8.17396186]
[1757095228319,4.941,202.66,202.63,0.03396186]
[1757095228524,2.72,202.65,202.63,0.03396186]
[1757095228720,2.72,202.64,202.63,0.03396186]
[1757095229423,7.661,202.64,202.63,0.03396186]
[1757095229624,2.72,202.64,202.63,0.03396186]
[1757095230419,7.661,202.64,202.63,0.03396186]
[1757095231126,2.72,202.64,202.63,0.03396186]
[1757095231324,3.22,202.64,202.63,0.03396186]
[1757095232317,8.161,202.64,202.63,0.03396186]
[1757095232623,8.161,202.64,202.5,15.54]
[1757095232624,4.941,202.62,202.53,8.14]
[1757095232828,2.7,202.57,202.53,8.14]
[1757095233027,2.7,202.57,202.51,8.14]
[1757095237530,7.641,202.6,202.51,8.14]
[1757095238132,4.941,202.6,202.51,8.14]
[1757095238332,2.7,202.57,202.51,8.14]
[1757095239326,4.941,202.56,202.51,8.14]
[1757095239528,4.941,202.56,202.48,8.14]
[1757095241032,3.41567067,202.53,202.42,8.14]
[1757095241327,7.641,202.5,202.42,8.14]
[1757095241528,2.18740806,202.47,202.42,8.14]
[1757095241721,2.18740806,202.47,202.41,2.18740806]
[1757095241927,2.18740806,202.47,202.41,10.32740806]
[1757095242133,2.18740806,202.45,202.32,8.14]
[1757095242324,2.18740806,202.45,202.41,8.14]
[1757095242528,2.7,202.46,202.41,8.14]
[1757095242728,2.7,202.46,202.4,10.32740806]
[1757095243731,2.18740806,202.45,202.38,2.18740806]
[1757095244025,4.88740806,202.43,202.39,8.14]
[1757095244224,4.88740806,202.43,202.38,2.18740806]
[1757095244537,2.18740806,202.43,202.39,8.14]
[1757095245032,4.88740806,202.43,202.39,8.14]
[1757095245336,2.7,202.43,202.39,8.14]
[1757095245536,4.88740806,202.43,202.39,8.14]
[1757095245736,4.88740806,202.43,202.38,2.18740806]
[1757095245936,4.88740806,202.43,202.39,8.14]
[1757095247032,4.88740806,202.43,202.38,2.18740806]
[1757095247238,2.18740806,202.45,202.39,8.14]
[1757095248344,2.7,202.46,202.39,8.14]
[1757095248536,4.87740806,202.44,202.39,8.14]
[1757095248735,2.18740806,202.44,202.39,8.14]
[1757095249037,2.69,202.43,202.39,8.14]
[1757095249438,2.69,202.43,202.37,2.18740806]
[1757095249740,2.18740806,202.44,202.38,7.61]
[1757095250337,27.03,202.46,202.39,2.18740806]
[1757095250338,7.631,202.46,202.39,2.18740806]
[1757095250532,9.81840806,202.46,202.4,7.61]
[1757095251540,7.631,202.46,202.4,7.61]
[1757095251735,9.81840806,202.46,202.4,7.61]
[1757095255035,4.941,202.5,202.42,7.61]
[1757095255235,4.941,202.5,202.44,7.61]
[1757095255236,7.12840806,202.5,202.44,7.61]
[1757095255640,4.87740806,202.48,202.41,2.18740806]
[1757095255940,4.87740806,202.46,202.42,7.61]
[1757095256137,2.69,202.45,202.41,7.61]
[1757095256739,2.18740806,202.46,202.4,2.18740806]
[1757095257234,2.18740806,202.46,202.4,9.79740806]
[1757095258340,2.69,202.45,202.33,7.61]
[1757095258641,2.18740806,202.44,202.38,2.18740806]
[1757095258838,2.18740806,202.44,202.39,7.61]
[1757095259239,2.18740806,202.44,202.38,2.18740806]
[1757095259638,2.18740806,202.44,202.39,7.61]
[1757095259838,2.18740806,202.46,202.39,7.61]
[1757095262042,2.18740806,202.46,202.4,2.18740806]
[1757095262344,7.12840806,202.47,202.41,7.61]
[1757095262636,7.12840806,202.47,202.41,9.79740806]
[1757095264140,7.12840806,202.47,202.41,7.61]
[1757095264342,4.941,202.47,202.41,7.61]
[1757095264539,7.12840806,202.47,202.4,2.18740806]
[1757095264738,7.12840806,202.47,202.41,7.61]
[1757095266338,2.18740806,202.45,202.41,7.61]
[1757095266544,2.18740806,202.45,202.39,7.61]
[1757095267941,4.941,202.47,202.41,7.61]
[1757095268141,7.12840806,202.46,202.4,2.18740806]
[1757095268541,7.12840806,202.46,202.4,9.79740806]
[1757095268738,2.18740806,202.44,202.4,7.61]
[1757095268939,2.69,202.43,202.4,7.61]
[1757095269348,2.18740806,202.42,202.4,7.61]
[1757095269848,2.18740806,202.42,202.36,2.18740806]
[1757095270440,2.18740806,202.42,202.37,7.61]
[1757095270843,2.18740806,202.42,202.35,7.61]
[1757095271048,2.18740806,202.41,202.35,7.61]
[1757095271544,2.69,202.39,202.33,2.18740806]
[1757095271748,4.87740806,202.39,202.33,2.18740806]
[1757095272140,4.87740806,202.39,202.27,40.949]
[1757095272340,4.87740806,202.39,202.34,7.61]
[1757095272542,4.87740806,202.39,202.26,7.61]
[1757095272742,4.87740806,202.39,202.33,7.61]
[1757095273641,2.18740806,202.37,202.25,0.86026822]
[1757095273846,2.18740806,202.37,202.31,7.61]
[1757095273847,4.87740806,202.37,202.31,7.61]
[1757095274443,2.18740806,202.35,202.31,7.61]
[1757095274643,2.18740806,202.35,202.3,2.18740806]
[1757095275339,4.87740806,202.35,202.31,7.61]
[1757095275539,2.69,202.34,202.3,9.79740806]
[1757095275741,2.18740806,202.35,202.31,7.61]
[1757095275942,4.87740806,202.35,202.31,7.61]
[1757095276247,4.87740806,202.35,202.3,2.18740806]
[1757095276641,4.87740806,202.35,202.31,7.61]
[1757095277237,13.2,202.41,202.33,7.61]
[1757095277438,2.69,202.4,202.24,318.06]
[1757095277641,7.12840806,202.41,202.34,2.18740806]
[1757095277846,7.12840806,202.41,202.35,7.61]
[1757095278247,4.941,202.41,202.35,7.61]
[1757095279044,7.12840806,202.41,202.35,7.61]
[1757095281355,4.941,202.41,202.35,7.61]
[1757095281546,2.71,202.42,202.36,9.57740806]
[1757095281748,4.89740806,202.42,202.36,7.39]
[1757095282451,2.71,202.39,202.34,2.18740806]
[1757095282652,9.83840806,202.38,202.34,7.39]
[1757095282852,2.71,202.37,202.34,7.39]
[1757095283548,7.12840806,202.38,202.32,2.18740806]
[1757095283753,9.83840806,202.38,202.31,7.39]
[1757095284852,2.18740806,202.36,202.3,9.57740806]
[1757095285551,7.12840806,202.36,202.3,9.57740806]
[1757095286653,20.30430729,202.48,202.22,24.1]
[1757095286654,4.941,202.38,202.33,7.39]
[1757095287049,4.941,202.38,202.33,2.18740806]
[1757095287249,4.941,202.38,202.34,7.39]
[1757095287647,4.941,202.39,202.33,9.57740806]
[1757095288049,4.941,202.39,202.33,7.39]
[1757095288050,2.71,202.37,202.33,7.39]
[1757095288555,2.71,202.35,202.22,7.39]
[1757095288758,2.18740806,202.34,202.28,9.57740806]
[1757095291855,2.72,202.33,202.22,7.39]
[1757095292056,2.18740806,202.32,202.25,2.18740806]
[1757095292254,2.18740806,202.32,202.26,7.39]
[1757095292559,2.18740806,202.32,202.26,9.57740806]
[1757095293553,2.18740806,202.32,202.27,0.03656282]
[1757095293554,7.12840806,202.32,202.27,0.03656282]
[1757095293751,2.75133169,202.31,202.27,0.03656282]
[1757095293956,0.03133169,202.31,202.27,0.03656282]
[1757095294153,0.03133169,202.31,202.28,7.39]
[1757095294654,0.03133169,202.31,202.27,0.03656282]
[1757095294859,0.03133169,202.31,202.28,2.18740806]
[1757095295051,0.03133169,202.31,202.29,7.39]
[1757095295457,0.03133169,202.31,202.28,2.18740806]
[1757095295756,0.03133169,202.31,202.29,7.39]
[1757095296459,0.03133169,202.31,202.27,0.03656282]
[1757095296460,0.03133169,202.31,202.3,9.57740806]
[1757095297065,0.03133169,202.31,202.3,7.39]
[1757095297953,0.03133169,202.31,202.27,0.03656282]
[1757095298363,0.03133169,202.31,202.28,7.39]
[1757095298664,0.03133169,202.31,202.27,0.03656282]
[1757095299064,0.03133169,202.31,202.28,7.39]
[1757095299358,0.03133169,202.31,202.27,0.03656282]
[1757095299858,0.03133169,202.31,202.28,7.39]
[1757095300258,0.03133169,202.31,202.27,0.03656282]
[1757095300962,0.03133169,202.31,202.28,7.39]
[1757095301162,0.03133169,202.31,202.27,0.03656282]
[1757095301362,0.03133169,202.31,202.28,7.39]
[1757095301555,0.03133169,202.31,202.27,0.03656282]
[1757095301755,2.21873975,202.31,202.28,7.39]
[1757095302357,2.21873975,202.31,202.27,0.03656282]
[1757095302557,2.21873975,202.31,202.28,7.39]
[1757095302757,2.21873975,202.31,202.27,0.03656282]
[1757095303061,2.21873975,202.31,202.28,7.39]
[1757095303457,0.03133169,202.31,202.27,0.03656282]
[1757095304055,0.03133169,202.31,202.28,7.39]
[1757095304257,2.72,202.3,202.27,0.03656282]
[1757095304457,2.75133169,202.31,202.27,0.03656282]
[1757095305363,2.72,202.3,202.27,0.03656282]
[1757095305566,0.03133169,202.31,202.27,0.03656282]
[1757095305866,2.75133169,202.31,202.27,0.03656282]
[1757095306167,2.72,202.3,202.27,0.03656282]
[1757095307164,0.03133169,202.31,202.27,0.03656282]
[1757095307365,2.72,202.29,202.27,0.03656282]
[1757095307568,3.42334735,202.3,202.27,0.03656282]
[1757095307867,2.72,202.29,202.27,0.03656282]
[1757095308363,3.42334735,202.3,202.27,0.03656282]
[1757095308569,2.73,202.29,202.27,0.03656282]
[1757095310173,3.42334735,202.3,202.27,0.03656282]
[1757095310463,6.15334735,202.3,202.27,0.03656282]
[1757095310764,0.03133169,202.31,202.28,7.58]
[1757095311670,2.76133169,202.31,202.28,7.58]
[1757095312063,2.76133169,202.31,202.27,0.03656282]
[1757095312267,0.03133169,202.31,202.27,0.03656282]
[1757095312667,0.03133169,202.31,202.28,7.58]
[1757095312970,2.73,202.3,202.27,0.03656282]
[1757095313367,3.45467904,202.31,202.27,7.61656282]
[1757095313567,6.18467904,202.31,202.27,7.61656282]
[1757095314371,6.18467904,202.31,202.28,7.58]
[1757095314971,0.03133169,202.31,202.28,7.58]
[1757095315165,0.03133169,202.31,202.27,0.03656282]
[1757095315766,0.03133169,202.31,202.28,7.58]
[1757095316071,0.03133169,202.31,202.27,0.03656282]
[1757095316766,0.03133169,202.31,202.28,7.58]
[1757095318871,0.03133169,202.31,202.27,0.03656282]
[1757095319072,0.03133169,202.31,202.28,7.58]
[1757095320174,0.03133169,202.31,202.27,0.03656282]
[1757095320376,0.03133169,202.31,202.28,7.58]
[1757095320673,0.03133169,202.31,202.27,0.03656282]
[1757095321075,0.03133169,202.31,202.28,7.58]
[1757095321670,0.03133169,202.31,202.28,3.42334735]
[1757095322274,0.03133169,202.31,202.29,7.58]
[1757095322474,0.03133169,202.31,202.27,0.03656282]
[1757095322675,0.03133169,202.31,202.28,7.58]
[1757095323477,0.03133169,202.31,202.27,3.45991017]
[1757095324075,0.03133169,202.31,202.28,7.58]
[1757095324272,0.03133169,202.31,202.27,3.45991017]
[1757095324573,0.03133169,202.31,202.28,7.58]
[1757095325271,0.03133169,202.31,202.3,3.42334735]
[1757095325476,4.941,202.38,202.31,7.58]
[1757095326771,4.941,202.38,202.32,0.03673982]
[1757095326973,4.941,202.38,202.33,7.58]
[1757095327176,4.941,202.38,202.32,0.03673982]
[1757095327375,4.941,202.38,202.33,7.58]
[1757095327575,4.941,202.37,202.33,7.58]
[1757095327774,4.941,202.37,202.32,0.03673982]
[1757095327976,4.941,202.37,202.33,7.58]
[1757095328568,4.941,202.36,202.33,7.58]
[1757095329679,2.76,202.35,202.32,0.03673982]
[1757095329882,2.76,202.35,202.32,7.61673982]
[1757095330072,2.76,202.35,202.32,0.03673982]
[1757095330581,2.76,202.33,202.32,0.03673982]
[1757095330982,3.26,202.33,202.32,0.03673982]
[1757095331281,6.68334735,202.33,202.32,0.03673982]
[1757095332482,11.62434735,202.33,202.32,0.03673982]
[1757095334183,8.201,202.33,202.32,0.03673982]
[1757095335481,3.26,202.33,202.32,0.03673982]
[1757095336882,3.42334735,202.35,202.32,0.03673982]
[1757095337177,2.76,202.36,202.32,0.03673982]
[1757095337384,3.42334735,202.37,202.32,0.03673982]
[1757095337684,2.76,202.36,202.32,7.61673982]
[1757095337876,2.76,202.38,202.32,0.03673982]
[1757095338776,7.701,202.38,202.32,0.03673982]
[1757095339880,52.501,202.38,202.32,0.03673982]
[1757095341586,7.701,202.38,202.32,0.03673982]
[1757095341778,7.671,202.33,202.32,0.03673982]
[1757095345490,8.171,202.33,202.32,0.03673982]
[1757095345685,2.7,202.28,202.16,8.08]
[1757095345890,2.7,202.28,202.18,8.08]
[1757095347496,2.7,202.22,202.12,8.08]
[1757095347794,3.42334735,202.23,202.13,8.08]
[1757095348595,7.641,202.26,202.16,8.08]
[1757095348790,7.641,202.26,202.19,3.42334735]
[1757095348992,7.641,202.26,202.2,8.08]
[1757095350385,7.641,202.26,202.15,3.42334735]
[1757095350590,7.641,202.26,202.16,8.08]
[1757095350790,7.641,202.26,202.18,3.42334735]
[1757095350995,7.641,202.26,202.19,8.08]
[1757095352489,4.941,202.28,202.19,8.08]
[1757095354200,2.7,202.26,202.19,8.08]
[1757095354697,4.941,202.27,202.19,8.08]
[1757095355308,4.941,202.28,202.19,8.08]
[1757095355911,4.941,202.26,202.19,8.08]
[1757095356712,4.941,202.26,202.21,8.08]
[1757095357008,4.941,202.32,202.24,8.08]
[1757095358305,4.941,202.31,202.24,8.08]
[1757095359301,4.941,202.33,202.24,8.08]
[1757095359506,4.941,202.3,202.24,8.08]
[1757095360407,4.941,202.31,202.24,8.08]
[1757095362614,4.941,202.28,202.13,69.2571]
[1757095362807,7.641,202.28,202.19,3.42334735]
[1757095363007,7.641,202.28,202.2,8.08]
[1757095363508,9.83266669,202.28,202.22,2.19166669]
[1757095364012,9.83266669,202.28,202.23,8.08]
[1757095364208,9.83266669,202.28,202.22,10.27166669]
[1757095364514,9.83266669,202.28,202.18,4.451]
[1757095364515,9.83266669,202.28,202.23,2.19166669]
[1757095364714,9.83266669,202.28,202.24,8.08]
[1757095364918,2.7,202.35,202.24,8.08]
[1757095365117,7.641,202.3,202.26,8.08]
[1757095365415,7.641,202.3,202.15,69.2503]
[1757095365416,4.941,202.3,202.28,8.08]
[1757095366414,4.941,202.3,202.27,2.19166669]
[1757095366611,4.941,202.3,202.27,10.27166669]
[1757095366817,4.941,202.3,202.15,69.2503]
[1757095366818,7.641,202.3,202.26,8.08]
[1757095367016,4.941,202.3,202.27,2.19166669]
[1757095367212,4.941,202.33,202.26,8.08]